Cogmind - Beta 16.1 @@@ ROGUE MODE // 2026.02.28 @ 11:54:57 Player: Rocket Result: Self-destructed Performance ------------- Evolutions (7) 3500 Regions Visited (26) 5200 Robots Destroyed (140) 700 Value Destroyed (5907) 5907 Prototype IDs (28) 560 Alien Tech Used (1) 200 Bonus (4740) 4740 TOTAL SCORE: 20807 Bonus ------- High Alert Combat Kills 695 Follower Combat Kills 5839 Network Hubs Disabled 200 Met Data Miner 300 Met Imprinter 300 Was Imprinted 300 Friendly Fire -2894 Cogmind --------- Core Integrity 570/1300 Matter 174/300 Energy 89/100 System Corruption 46% Temperature Cool (0) Movement Core (50) Location -3/Research Parts ------- > --- POWER (2) -------- (None) > --- PROPULSION (6) --- (None) > --- UTILITY (11) ----- Enhanced Optical Array > --- WEAPON (2) ------- (None) > --- INVENTORY (5) ---- Layered Heavy Armor Plating Layered Heavy Armor Plating Peak State ------------ > --- POWER ------------ Reinforced Antimatter Reactor Particle Reactor > --- PROPULSION ------- Biometal Medium Treads Thunder Leg Myomer Leg Myomer Leg Myomer Leg Zionite Composite Leg II > --- UTILITY ---------- High-capacity Storage Unit Experimental Energy Well Structural Scanner Advanced Sensor Array Advanced Signal Interpreter Long-range Terrain Scanner Advanced Terrain Scan Processor Experimental Targeting Computer Improved Hacking Suite Advanced Hacking Suite Advanced Hacking Suite > --- WEAPON ----------- Linear Accelerator Phasing Sabre > --- INVENTORY -------- Light Ion Engine Light Antimatter Reactor Flexi-carbon Leg Flexi-carbon Leg Medium Matter Pod Advanced Signal Interpreter Terrain Scanner Remote Force Field Improved Field Recycling Unit Drone Bay Quantum Rifle Tesla Bomb Launcher Remote Datajack Improved Remote Datajack Improved Plasma Cutter [Rating: 134] Favorites ----------- Power Enhanced Nuclear Core Engine Light Angular Momentum Engine Power Core Enhanced Nuclear Core Reactor Vortex Chain Reactor Propulsion Flexi-carbon Leg Treads Biometal Medium Treads Leg Flexi-carbon Leg Wheel Armored Huge Wheel Hover Unit Improved Hover Unit Flight Unit Improved Flight Unit Utility High-capacity Storage Unit Device Improved Sensor Array Storage High-capacity Storage Unit Processor 0b10 Decoder Chip [Scout] Hackware Advanced Hacking Suite Protection Makeshift Light Armor Plating Weapon Enhanced Gauss Cannon Energy Gun Quantum Rifle Energy Cannon Long-range Proton Cannon Ballistic Gun Assault Rifle Ballistic Cannon Enhanced Gauss Cannon Launcher Missile Launcher Special Weapon Remote Datajack Impact Weapon Great Maul Slashing Weapon Phasing Sabre Piercing Weapon Makeshift Spear Build | -11 -10 -10 -10 -9 -8 -8 -7 -7 -7 -7 -6 -6 -6 -6 -5 -5 -5 -5 -5 -4 -4 -4 -4 -4 -4 -3 ------- Run | Yrd Mat Min Exi Min Mat Sto Fac Low Low Zio Pro Fac Low Dat Pro Fac Upp Upp War Pro Fac Ext Cet Arc Hub Res Slots Evolved 14 | . . . . . 4 . 2 . . . . 2 . . . 2 . . . . 2 . . . . 2 Power 1 | . . . . . . . . . . . . . . . . . . . . . 1 . . . . . Propulsion 4 | . . . . . 2 . 1 . . . . 1 . . . . . . . . . . . . . . Utility 9 | . . . . . 2 . 1 . . . . 1 . . . 2 . . . . 1 . . . . 2 Weapon . | . . . . . . . . . . . . . . . . . . . . . . . . . . . Parts Attached 226 | 7 7 2 . . . 29 25 2 4 5 1 3 . . 5 7 5 10 5 18 21 14 1 1 6 48 Power 19 | 1 . 1 . . . 4 3 . . . . . . . 1 . 1 1 . 2 1 . . . . 4 Engine 10 | 1 . . . . . 4 2 . . . . . . . 1 . . 1 . . . . . . . 1 Core 3 | . . 1 . . . . 1 . . . . . . . . . 1 . . . . . . . . . Reactor 6 | . . . . . . . . . . . . . . . . . . . . 2 1 . . . . 3 Propulsion 74 | 2 1 . . . . 16 4 2 1 1 1 . . . . . 2 5 . 10 7 8 . . 3 11 Treads 3 | . . . . . . . . . . . 1 . . . . . . . . . . . . . . 2 Leg 36 | . . . . . . . . . . . . . . . . . . 2 . 10 7 8 . . 3 6 Wheel 13 | 2 1 . . . . 1 . 1 1 1 . . . . . . 2 3 . . . . . . . 1 Hover 3 | . . . . . . 1 . . . . . . . . . . . . . . . . . . . 2 Flight 19 | . . . . . . 14 4 1 . . . . . . . . . . . . . . . . . . Utility 85 | 1 2 1 . . . 5 11 . 2 2 . 3 . . . 4 1 3 4 2 8 2 1 . 3 30 Device 34 | . 1 . . . . 3 5 . . . . 1 . . . 1 . 1 1 2 5 1 1 . 2 10 Storage 7 | 1 1 . . . . 1 . . . 1 . . . . . . . . 1 . . . . . . 2 Processor 26 | . . 1 . . . 1 2 . 2 1 . 1 . . . 2 1 2 2 . 1 . . . . 10 Hackware 8 | . . . . . . . 3 . . . . . . . . 1 . . . . . . . . . 4 Protection 10 | . . . . . . . 1 . . . . 1 . . . . . . . . 2 1 . . 1 4 Artifact . | . . . . . . . . . . . . . . . . . . . . . . . . . . . Weapon 48 | 3 4 . . . . 4 7 . 1 2 . . . . 4 3 1 1 1 4 5 4 . 1 . 3 Energy Gun 7 | 1 2 . . . . 1 . . . . . . . . . . . . . . . 2 . 1 . . Energy Cannon 6 | . . . . . . . . . . . . . . . 2 1 . 1 . . 1 . . . . 1 Ballistic Gun 5 | 2 2 . . . . 1 . . . . . . . . . . . . . . . . . . . . Ballistic Cannon 7 | . . . . . . . 1 . . 1 . . . . 1 1 . . . 2 . . . . . 1 Launcher 8 | . . . . . . 2 . . 1 . . . . . . 1 . . . 2 1 1 . . . . Special Weapon 3 | . . . . . . . . . . . . . . . 1 . . . . . 2 . . . . . Impact Weapon 2 | . . . . . . . 2 . . . . . . . . . . . . . . . . . . . Slashing Weapon 9 | . . . . . . . 4 . . 1 . . . . . . . . 1 . 1 1 . . . 1 Piercing Weapon 1 | . . . . . . . . . . . . . . . . . 1 . . . . . . . . . Special Melee Weapon . | . . . . . . . . . . . . . . . . . . . . . . . . . . . Unidentified Prototypes 21 | . . . . . . 2 4 . . . . . . . . 2 1 . 4 1 3 . . . . 4 Corrupted Parts 15 | . . . . . . . . . . . . . . . . . . 2 . 5 4 2 . . . 2 System Corruption 129 | . . . . . . . . . . . . . . . . . . 18 . 45 31 19 . . . 16 Parts Lost 78 | . 1 . . . . 9 4 1 . . . . . . 2 . 1 6 . 1 7 2 2 1 9 32 Power 8 | . . . . . . 1 . . . . . . . . 1 . 1 1 . . . . . . 1 3 Propulsion 28 | . 1 . . . . 3 1 1 . . . . . . . . . 3 . . 1 . . 1 3 14 Utility 29 | . . . . . . 2 2 . . . . . . . . . . 2 . 1 3 1 1 . 5 12 Weapon 13 | . . . . . . 3 1 . . . . . . . 1 . . . . . 3 1 1 . . 3 Highest Loss Streak 11 | . 1 . . . . 6 2 1 . . . . . . 1 . 1 6 . 1 3 1 2 1 9 11 To Critical Strikes 1 | . . . . . . . . . . . . . . . . . . . . . . . . . . 1 Average Backups 16 | 2 6 10 10 10 10 9 8 7 7 14 18 18 19 19 19 19 19 18 18 18 18 19 18 18 18 13 Power . | . 1 1 1 1 1 . . . . . 1 1 1 1 . . . . . 1 . . . . . 1 Propulsion 2 | 2 4 3 2 2 2 3 2 1 2 1 1 1 1 1 2 2 2 1 . 2 3 4 5 5 3 1 Utility 7 | . . 2 3 4 5 4 3 2 2 7 9 9 10 10 9 9 11 11 11 9 7 7 8 8 9 5 Weapon 4 | . 1 3 3 2 2 . 2 2 1 4 7 7 7 7 6 5 4 4 4 4 4 4 2 2 2 2 Tool/Special . | . . . . . . . . . . . . . . . . . . . . . . . . . . . Unused Backups 35 | . . 1 3 . . 3 3 2 1 1 . 2 . . 3 5 . . 1 1 3 1 . . . 5 Power 1 | . . . . . . . . 1 . . . . . . . . . . . . . . . . . . Propulsion 7 | . . 1 1 . . 2 . . 1 . . . . . 1 1 . . . . . . . . . . Utility 19 | . . . 2 . . 1 2 . . 1 . 2 . . . 3 . . 1 1 1 . . . . 5 Weapon 6 | . . . . . . . . 1 . . . . . . 2 1 . . . . 1 1 . . . . Tool/Special 2 | . . . . . . . 1 . . . . . . . . . . . . . 1 . . . . . Average Slot Usage (%) 90 | . 89 100 100 100 63 78 92 84 82 83 84 78 80 80 79 81 86 86 97 97 92 92 94 90 89 90 Engine 1 | . 14 11 . . . 5 5 . . . . . . . 2 5 . . 5 . . . . . . . Core 2 | . . 2 14 14 9 2 1 7 7 7 7 6 6 6 3 . 4 2 . . . . . . . . Reactor 2 | . . . . . . . . . . . . . . . . . . . . 3 4 5 5 5 4 7 Leg 14 | . . . . . . . . . . . . . . . . . . 4 11 32 30 30 31 27 29 20 Wheel 9 | . 27 28 28 28 18 7 . . 4 13 15 19 20 20 20 17 21 22 23 2 . . . . . . Flight 4 | . . . . . . 21 37 36 28 9 6 . . . . . . . . . . . . . . . Device 9 | . 4 13 . . . 6 13 10 7 7 7 6 6 6 6 8 10 8 5 6 14 15 15 15 13 13 Storage 8 | . 14 14 14 14 9 10 7 7 7 7 7 6 6 6 6 5 5 5 5 9 8 10 10 10 10 9 Processor 19 | . . . 14 14 9 13 7 7 8 22 23 20 20 20 20 22 23 25 32 27 19 15 15 15 15 14 Hackware 1 | . . . . . . . 6 . . . . . . . . 2 . . . . . . . . . 6 Protection 1 | . . . . . . . . 7 7 . . 4 6 6 6 5 5 2 . . 2 3 5 5 4 1 Ballistic Gun 2 | . 26 28 28 28 18 5 . . . . . . . . . . . . . . . . . . . . Ballistic Cannon 2 | . . . . . . . 1 . 2 5 7 6 6 6 1 4 4 4 4 3 1 . . . . 2 Launcher 2 | . . . . . . 4 . . 2 4 7 6 6 6 4 2 . . . 2 3 1 . 2 . . Slashing Weapon 2 | . . . . . . . 7 5 4 2 . . . . 1 1 . . 1 1 2 4 5 5 4 3 Peak Build Rating 134 | 6 8 10 10 10 10 28 47 47 47 54 54 62 62 62 64 79 79 74 75 102 129 126 126 125 127 134 Average Rating 75 | 4 6 8 9 10 10 17 41 42 43 52 53 59 62 62 61 74 74 63 65 91 118 122 124 119 119 119 On Entrance 55 | . 6 8 10 10 10 10 28 47 43 45 54 52 62 62 62 63 78 73 60 70 99 111 125 124 119 79 Avg Prop Armor Cover (%) 6 | . . . . . . 6 . 6 1 1 2 . . . . . . 11 11 13 3 . . . . 8 Naked Turns 13 | . . . . . . . . . . . . . . . . . . . . . . . . . . 13 Heaviest Build 159 | 11 20 21 19 19 19 25 31 29 34 62 62 66 66 66 68 75 78 72 70 81 109 118 120 118 115 159 Greatest Support 148 | 20 20 20 20 20 20 26 32 28 56 56 56 84 84 84 84 84 84 80 48 121 148 140 140 140 143 146 Greatest Overweight (x) 20 | 1 1 1 . . . 3 1 1 . 1 1 . . . . . 1 1 1 20 1 . . 1 1 7 Average Overweight (x) . | . . . . . . . . . . . 1 . . . . . . . 1 . . . . . . . Largest Inventory Capacity 25 | 8 10 10 10 10 10 10 10 10 10 20 20 20 20 20 20 20 20 20 20 20 20 20 20 20 20 25 Average Capacity 17 | 7 9 10 10 10 10 10 10 10 10 19 20 20 20 20 20 20 20 20 20 20 20 20 20 20 20 20 Most Carried 21 | 5 10 10 10 10 10 10 10 10 10 20 20 20 20 20 20 20 20 20 20 20 20 20 20 20 20 21 Average Carried 16 | 2 6 9 9 10 10 9 9 9 9 15 20 19 20 20 19 19 19 18 19 19 18 19 18 19 19 14 Final Capacity 20 | 8 10 10 10 10 10 10 10 10 10 20 20 20 20 20 20 20 20 20 20 20 20 20 20 20 20 5 Final Carried 20 | 5 10 10 10 10 10 10 10 9 10 20 20 20 20 20 19 20 20 17 20 19 18 20 18 20 15 4 Class Distribution -------------------- 34% | Scavenger-Mutant 27% | Mutant 9% | Sprinter 8% | Commander-Mutant 6% | Derelict-Mutant 4% | Scavenger-Assassin 3% | Hacker-Assassin Dominant Class ---------------- Mutant | -10/Materials Mutant | -10/Mines Mutant | -10/Exiles Mutant | -9/Mines Mutant | -8/Materials Mutant | -8/Storage Sprinter | -7/Factory Sprinter | -7/Lower Caves Sprinter | -7/Lower Caves Mutant | -7/Zion Mutant | -6/Proximity Caves Mutant | -6/Factory Mutant | -6/Lower Caves Mutant | -6/Data Miner Derelict-Mutant | -5/Proximity Caves Derelict-Skirmisher | -5/Factory Derelict-Mutant | -5/Upper Caves Commander-Mutant | -5/Upper Caves Commander-Mutant | -5/Warlord Scavenger-Mutant | -4/Proximity Caves Scavenger-Mutant | -4/Factory Scavenger-Mutant | -4/Extension Scavenger-Mutant | -4/Cetus Scavenger-Mutant | -4/Archives Scavenger-Mutant | -4/Hub_04(d) Hacker-Assassin | -3/Research Resources | -11 -10 -10 -10 -9 -8 -8 -7 -7 -7 -7 -6 -6 -6 -6 -5 -5 -5 -5 -5 -4 -4 -4 -4 -4 -4 -3 ----------- Run | Yrd Mat Min Exi Min Mat Sto Fac Low Low Zio Pro Fac Low Dat Pro Fac Upp Upp War Pro Fac Ext Cet Arc Hub Res Matter Collected 8567 | 131 156 152 444 18 . 600 588 256 166 133 195 . . . 486 114 552 333 . 1399 395 733 . 2 333 1381 Remotely . | . . . . . . . . . . . . . . . . . . . . . . . . . . . Salvage Created 5586 | . 13 136 . 34 . 542 245 69 37 . 200 69 . . 336 106 343 197 . 1023 481 445 13 . 503 794 Parts 265 | . 3 6 . 5 . 39 13 6 6 . 4 2 . . 20 3 9 7 . 37 33 17 . . 10 45 Haulers Intercepted 1 | . . . . . . 1 . . . . . . . . . . . . . . . . . . . . Recyclers Shooed 5 | . . . . 1 . 1 . . . . . . . . . . . . . . 2 . . . . 1 Parts Field Recycled 25 | . . . . . . . . . . . . . . . . . . . . . . 18 . . 7 . Retrieved Matter 283 | . . . . . . . . . . . . . . . . . . . . . . 159 . . 124 . Parts Self-Destructed 86 | . . . . . . . . 5 6 . 2 . . . 16 . 12 11 . 34 . . . . . . Prevented 33 | . . . . . . . . . . . 2 . 1 . . . . 3 . 27 . . . . . . Parts Restored . | . . . . . . . . . . . . . . . . . . . . . . . . . . . Kills | -11 -10 -10 -10 -9 -8 -8 -7 -7 -7 -7 -6 -6 -6 -6 -5 -5 -5 -5 -5 -4 -4 -4 -4 -4 -4 -3 ------- Run | Yrd Mat Min Exi Min Mat Sto Fac Low Low Zio Pro Fac Low Dat Pro Fac Upp Upp War Pro Fac Ext Cet Arc Hub Res Combat Hostiles Destroyed 103 | . . 3 . . . 14 2 3 4 . 4 . . . 11 3 7 7 . 13 9 6 . . 3 14 Melee 15 | . . . . . . . 2 3 . . . . . . 1 . . . . . 1 3 . . . 5 Guns 10 | . . 3 . . . 7 . . . . . . . . . . . . . . . . . . . . Cannons 29 | . . . . . . . . . . . 1 . . . 1 3 7 7 . 4 2 . . . . 4 AOE 39 | . . . . . . 7 . . 4 . 3 . . . 9 . . . . 3 5 3 . . 3 2 Classes Destroyed 24 | . 1 1 . 1 . 5 1 . . . 1 2 . . 3 . 1 1 . 2 3 1 . . 1 . Worker 7 | . 2 . . 1 . 2 1 . . . . . . . . . . . . . . . . . 1 . Builder 9 | . . . . 1 . 4 1 . . . . . . . . . . . . . . . . . . 3 Hauler 1 | . . . . . . 1 . . . . . . . . . . . . . . . . . . . . Recycler 3 | . . . . . . 1 1 . . . . . . . . . . . . . . 1 . . . . Minesweeper 2 | . . . . . . . . . . . . . . . 1 . . 1 . . . . . . . . Mechanic 1 | . . . . . . . . . . . . 1 . . . . . . . . . . . . . . Operator 1 | . . . . . . . . . . . . . . . . . . . . . . 1 . . . . Watcher 3 | . . . . . . . . . . . . . . . . . . . . . 1 . 1 . 1 . Swarmer 36 | . . . . . . 5 . 3 4 . . . . . 6 . 2 3 . . 4 3 . . . 6 Grunt 27 | . . 3 . . . 5 . . . . 2 . . . . 1 2 . . 9 . 1 . . 1 3 Brawler 3 | . . . . . . . . . . . 1 . . . . . 2 . . . . . . . . . Duelist 1 | . . . . . . . . . . . . . . . . . 1 . . . . . . . . . Protector 3 | . . . . . . . . . . . . . . . . . . . . 1 1 . . . 1 . Sentry 11 | . . . . . . 3 1 . . . 1 . . . 1 1 . 1 . 1 . 1 . . . 1 Demolisher 2 | . . . . . . . . . . . . . . . . . . . . 2 . . . . . . Specialist 2 | . . . . . . . . . . . . . . . 2 . . . . . . . . . . . Hunter 6 | . . . . . . 1 . . . . . . . . 1 1 . . . . 2 . . . 1 . Programmer 8 | . . . . . . . 1 . . . . . . . 1 . . . . . 2 . . . . 4 Heavy 1 | . . . . . . . . . . . . . . . . . . . . . 1 . . . . . Behemoth 2 | . . . . . . . . . . . . . . . . . . 1 . 1 . . . . . . Z-Light 2 | . . . . . . . . . . . . . . . . . . . . . . . . . 2 . Z-Heavy 1 | . . . . . . . . . . . . . . . . . . . . . 1 . . . . . Wasp 2 | . . . . . . . . . . . . . . . . . . 2 . . . . . . . . Guerrilla 1 | . . . . . . . . . . . . . . . . . . . . . . 1 . . . . Fireman 3 | . . . . . . . . . . . . . . . 2 . 1 . . . . . . . . . Mutant 1 | . . . . . . . . . . . . 1 . . . . . . . . . . . . . . Best Kill Streak 5 | . 2 2 . 1 . 5 1 3 4 . 4 1 . . 5 1 4 2 . 3 4 3 1 . 3 3 Combat Bots Only 5 | . . 2 . . . 4 1 3 4 . 4 . . . 5 1 4 2 . 3 4 3 . . 2 3 Max Kills in Single Turn 3 | . 2 1 . 1 . 2 1 1 2 . 2 1 . . 2 1 1 1 . 1 3 3 1 . 2 2 Gunslinging . | . . . . . . . . . . . . . . . . . . . . . . . . . . . Exploded 3 | . . . . . . 1 . . 2 . 2 . . . 2 . . . . 1 3 3 . . 1 2 Melee 1 | . . . . . . . 1 1 . . . . . . 1 . . . . . 1 1 . . . 1 Uniques/NPCs Destroyed 1 | . . . . . . . . . . . . . . . . . . . . . . . . . 1 . NK-0LA (-4/Hub_04(d)) Combat | -11 -10 -10 -10 -9 -8 -8 -7 -7 -7 -7 -6 -6 -6 -6 -5 -5 -5 -5 -5 -4 -4 -4 -4 -4 -4 -3 -------- Run | Yrd Mat Min Exi Min Mat Sto Fac Low Low Zio Pro Fac Low Dat Pro Fac Upp Upp War Pro Fac Ext Cet Arc Hub Res Hostile Shots Fired 1114 | . . 18 . . . 98 82 22 6 . 44 . . . 56 16 44 37 . 54 143 26 39 6 147 276 Missed 379 | . . 7 . . . 31 40 7 2 . 19 . . . 12 8 15 14 . 15 72 11 9 2 50 65 Hits 735 | . . 11 . . . 67 42 15 4 . 25 . . . 44 8 29 23 . 39 71 15 30 4 97 211 Melee 11 | . . . . . . . 1 . . . . . . . 1 . . . . 3 . . . . 1 5 Projectile 724 | . . 11 . . . 67 41 15 4 . 25 . . . 43 8 29 23 . 36 71 15 30 4 96 206 AOE 8 | . . . . . . . . . . . . . . . . . . . . 5 3 . . . . . Critical Strikes 51 | . . 1 . . . 1 2 . . . . . . . 1 . 1 2 . 2 3 1 3 1 15 18 Part Disruptions 5 | . . . . . . . 1 . . . . . . . . . . . . . 1 . . . 1 2 Damage Taken 14691 | . 127 153 . . . 932 556 218 154 . 341 61 . . 898 102 459 569 . 651 1427 228 669 62 1974 5110 Core 2103 | . . 10 . . . 262 131 72 13 . 37 . . . 128 64 35 72 . 30 163 35 37 . 284 730 Absorbed by Shields 2595 | . . . . . . . . . . . . . . . . . 52 25 . 586 660 215 142 58 513 344 Redirected to Shielding 274 | . . . . . . . . 9 . . . . . . . . . . . . 93 8 . . . 164 Regen/Repaired (Parts) 541 | . . . . . . . . . . 366 . . . . . . . . 175 . . . . . . . Core Remaining (%) 75 | 100 . . . 96 . 52 . . . . 63 . . . 84 . . . . 79 . . . . 54 . Volleys Fired 488 | . 4 16 . 5 . 50 2 . 12 . 19 9 . . 39 15 31 27 10 104 39 21 7 3 10 65 Largest 2 | . 2 2 . 2 . 2 1 . 2 . 2 1 . . 1 1 1 1 1 1 1 1 1 1 1 1 Hottest 94 | . 40 40 . 40 . 85 40 . 76 . 76 40 . . 81 47 47 47 5 55 81 81 81 46 94 94 Shots Fired 525 | . 8 32 . 10 . 66 2 . 14 . 20 9 . . 39 15 31 26 10 100 39 20 7 3 9 65 Gun 99 | . 8 32 . 10 . 41 . . . . . . . . . . . . . . . . 2 . 2 4 Cannon 268 | . . . . . . . 2 . 10 . 16 8 . . 21 14 23 24 . 67 25 5 . . . 53 Launcher 113 | . . . . . . 25 . . 4 . 4 1 . . 17 . 2 . . 19 11 10 4 3 7 6 Special 45 | . . . . . . . . . . . . . . . 1 1 6 2 10 14 3 5 1 . . 2 Kinetic 336 | . 8 32 . 10 . 35 2 . 10 . 16 8 . . 19 14 23 24 . 67 15 . . . . 53 Thermal 18 | . . . . . . 6 . . . . . . . . 1 . . . . . 2 . 3 . 2 4 Explosive 65 | . . . . . . 25 . . 4 . 4 1 . . 17 . . . . . 5 2 4 . 3 . Electromagnetic 64 | . . . . . . . . . . . . . . . 1 . 2 . . 19 16 13 . 3 4 6 Robot Hit Streak 15 | . . 7 . 11 . 10 . . 4 . 5 6 . . 6 5 9 9 7 15 6 5 4 5 2 6 Robot Miss Streak 9 | . 2 6 . 2 . 2 . . 1 . 3 . . . 1 1 5 2 1 3 9 2 1 1 3 4 Penetration Max 1 | . . . . . . . . . . . . . . . . . 1 . . . . . . . . . Secondary Targets 1 | . . 1 . . . . . . . . . . . . . . . . . . . . . . . . Max Gunslinging Chain 1 | . . 1 . . . . . . . . . . . . . . . . . . . . . . . . Shots Hit Robots 347 | . . 18 . 5 . 34 13 3 5 . 12 6 . . 18 7 27 20 9 70 22 16 4 2 5 51 Core Hits 260 | . 2 8 . 3 . 44 4 3 6 . 11 4 . . 27 4 12 7 . 32 21 14 11 1 19 27 Critical Kills . | . . . . . . . . . . . . . . . . . . . . . . . . . . . Critical Parts Destroyed . | . . . . . . . . . . . . . . . . . . . . . . . . . . . Critical Strikes 20 | . . . . . . . 3 . . . . 1 . . . 1 2 1 . 5 . 2 . . . 5 Blast 9 | . . . . . . . . . . . . 1 . . . 1 1 1 . 4 . . . . . 1 Sever 10 | . . . . . . . 3 . . . . . . . . . . . . 1 . 2 . . . 4 Impale 1 | . . . . . . . . . . . . . . . . . 1 . . . . . . . . . Melee Attacks 193 | . . . . . . . 54 17 2 . . . . . 11 . 7 2 . 21 13 11 1 . 7 47 Impact . | . . . . . . . . . . . . . . . . . . . . . . . . . . . Slashing 184 | . . . . . . . 54 17 2 . . . . . 11 . . . . 21 13 11 1 . 7 47 Piercing 9 | . . . . . . . . . . . . . . . . . 7 2 . . . . . . . . Sneak Attacks 21 | . . . . . . . 5 . . . . . . . 1 . . 2 . 6 . 2 . . 1 4 Combat Hostiles 1 | . . . . . . . 1 . . . . . . . . . . . . . . . . . . . Follow-up Attacks . | . . . . . . . . . . . . . . . . . . . . . . . . . . . Damage Inflicted 18421 | . 174 264 . 76 . 1374 642 161 454 . 581 429 . . 2109 185 847 709 . 2921 1487 1097 793 90 1275 2753 Guns 780 | . . 264 . 76 . 287 . . . . . . . . . . . . . . . . 22 . 28 103 Cannons 4736 | . . . . . . . . . 86 . 194 170 . . 200 185 577 587 . 1262 497 92 . . . 886 Explosions 9259 | . 174 . . . . 1087 . . 368 . 387 259 . . 1672 . 98 . . 1184 915 613 771 90 1164 477 Melee 3646 | . . . . . . . 642 161 . . . . . . 237 . 172 122 . 475 75 392 . . 83 1287 Ramming . | . . . . . . . . . . . . . . . . . . . . . . . . . . . Kinetic 5085 | . . 264 . 76 . 229 . . 86 . 194 170 . . 173 185 577 587 . 1262 396 . . . . 886 Thermal 449 | . . . . . . 58 . . . . . . . . 27 . . . . 211 . . 22 . 28 103 Explosive 6187 | . 174 . . . . 1087 . . 368 . 387 259 . . 1672 . . . . . 548 428 771 . 493 . Electromagnetic 3054 | . . . . . . . . . . . . . . . . . 98 . . 973 468 277 . 90 671 477 Impact . | . . . . . . . . . . . . . . . . . . . . . . . . . . . Slashing 3352 | . . . . . . . 642 161 . . . . . . 237 . . . . 475 75 392 . . 83 1287 Piercing 294 | . . . . . . . . . . . . . . . . . 172 122 . . . . . . . . Highest Corruption 79 | . . . . . . . 6 6 6 6 . . . . . . . 18 18 45 35 56 56 56 79 46 Average Corruption 28 | . . . . . . . 1 6 6 6 . . . . . . . 17 18 33 22 50 56 56 58 22 Corruption Purged . | . . . . . . . . . . . . . . . . . . . . . . . . . . . Corruption Blocked . | . . . . . . . . . . . . . . . . . . . . . . . . . . . Effects 369 | . . . . . . . 8 8 6 . . . . . . . . 15 4 119 40 40 17 7 39 66 Message Errors 99 | . . . . . . . . 4 1 . . . . . . . . 4 . 39 6 10 4 1 9 21 Matter Fused 87 | . . . . . . . 5 2 . . . . . . . . . 6 3 25 8 7 4 . 11 16 Heat Flow Errors 36 | . . . . . . . 2 . 1 . . . . . . . . 1 . 14 2 4 . 2 5 5 Energy Discharges 43 | . . . . . . . . . 1 . . . . . . . . 1 . 13 6 8 2 3 3 6 Parts Rejected 5 | . . . . . . . . . . . . . . . . . . . . . 1 1 . . 1 2 Parts Fused 2 | . . . . . . . . . . . . . . . . . . . . . . . . . . 2 Data Loss (minor) 41 | . . . . . . . . 2 1 . . . . . . . . 1 1 17 5 5 2 1 1 5 Data Loss (major) 18 | . . . . . . . 1 . 1 . . . . . . . . . . 3 4 3 1 . 2 3 Misfires 3 | . . . . . . . . . . . . . . . . . . . . . 1 . 1 . . 1 Alerts 10 | . . . . . . . . . 1 . . . . . . . . 1 . 3 1 . 1 . . 3 Misdirections 15 | . . . . . . . . . . . . . . . . . . . . 1 5 1 1 . 6 1 Weapon Failures 10 | . . . . . . . . . . . . . . . . . . 1 . 4 1 1 1 . 1 1 Overload Shots . | . . . . . . . . . . . . . . . . . . . . . . . . . . . Overflow Damage 813 | . 26 . . . . 15 165 . 38 . . . . . 183 . 26 49 . 40 33 24 17 . 99 98 Projectiles 135 | . . . . . . . . . . . . . . . 46 . . 25 . 17 7 11 . . . 29 Explosions 295 | . 26 . . . . 15 . . 38 . . . . . 100 . . . . 23 4 13 17 . 56 3 Melee 383 | . . . . . . . 165 . . . . . . . 37 . 26 24 . . 22 . . . 43 66 Knockbacks 14 | . . . . . . . . . 1 . 1 . . . 1 1 2 1 . 5 1 . . . . 1 Impact . | . . . . . . . . . . . . . . . . . . . . . . . . . . . Kinetic 14 | . . . . . . . . . 1 . 1 . . . 1 1 2 1 . 5 1 . . . . 1 Secondary . | . . . . . . . . . . . . . . . . . . . . . . . . . . . Self-Inflicted Damage 749 | . 128 . . . . 84 . . 98 . . 61 . . 46 . . . . 100 132 21 . . 57 22 Shots 17 | . 2 . . . . 2 . . 2 . . 1 . . 2 . . . . 1 2 2 . . 2 1 Rammed . | . . . . . . . . . . . . . . . . . . . . . . . . . . . Targets Rammed . | . . . . . . . . . . . . . . . . . . . . . . . . . . . Kicked . | . . . . . . . . . . . . . . . . . . . . . . . . . . . Crushed . | . . . . . . . . . . . . . . . . . . . . . . . . . . . Highest Temperature 284 | . . 21 . . . 40 256 7 188 19 22 . . . 32 260 8 87 . 265 259 219 62 138 284 227 Average Temperature 60 | . . 9 . . . 15 42 2 22 9 10 . . . 16 135 4 27 . 102 59 75 21 65 122 84 Received Heat Transfer 1562 | . . 105 . . . 207 66 . . . 63 . . . 153 9 90 126 . 94 144 30 75 8 100 292 Effects 8 | . . . . . . . . . . . . . . . . . . . . 2 . 3 . . . 3 Energy Bleed 1 | . . . . . . . . . . . . . . . . . . . . . . . . . . 1 Interference 7 | . . . . . . . . . . . . . . . . . . . . 2 . 3 . . . 2 Siege Activations . | . . . . . . . . . . . . . . . . . . . . . . . . . . . Martial Activations . | . . . . . . . . . . . . . . . . . . . . . . . . . . . Shielding Activations 1 | . . . . . . . . . . . . . . . . . . . . . 1 . . . . . Total Turns 1 | . . . . . . . . . . . . . . . . . . . . . 1 . . . . . Longest Duration 1 | . . . . . . . . . . . . . . . . . . . . . 1 . . . . . Robots Disrupted . | . . . . . . . . . . . . . . . . . . . . . . . . . . . Combat Hostiles . | . . . . . . . . . . . . . . . . . . . . . . . . . . . Robots Corrupted 10 | . . . . . . . . . . . . . . . . . . . . 6 1 . . . . 3 Combat Hostiles 10 | . . . . . . . . . . . . . . . . . . . . 6 1 . . . . 3 Parts Fried 22 | . . . . . . . . . . . . . . . 1 . . 1 . 8 3 2 . . 5 2 Impact Corruptions . | . . . . . . . . . . . . . . . . . . . . . . . . . . . Robots Melted . | . . . . . . . . . . . . . . . . . . . . . . . . . . . Combat Hostiles . | . . . . . . . . . . . . . . . . . . . . . . . . . . . Parts Melted 5 | . . 1 . . . . . . . . . . . . . 2 . 2 . . . . . . . . Heat Transferred 509 | . . . . . . 148 . . . . . . . . 37 . . . . 120 . . 37 . 37 130 Parts Sabotaged 4 | . . . . . . . . . . . . . . . . . . . . . . . . . 4 . Parts Stolen . | . . . . . . . . . . . . . . . . . . . . . . . . . . . Parts Stripped . | . . . . . . . . . . . . . . . . . . . . . . . . . . . Power Chain Reactions 1 | . . . . . . . . . . . . . . . . . . . . 1 . . . . . . Alert | -11 -10 -10 -10 -9 -8 -8 -7 -7 -7 -7 -6 -6 -6 -6 -5 -5 -5 -5 -5 -4 -4 -4 -4 -4 -4 -3 ------- Run | Yrd Mat Min Exi Min Mat Sto Fac Low Low Zio Pro Fac Low Dat Pro Fac Upp Upp War Pro Fac Ext Cet Arc Hub Res Maximum Alert Level 5 | . . . . . . 1 . . . . . . . . . . . . . . 2 3 2 1 4 5 Low Security (%) 51 | 100 100 100 . 100 100 75 100 . . . . 100 . . . 100 . . . . 62 . . 4 8 . Level 1 12 | . . . . . . 24 . . . . . . . . . . . . . . 29 18 11 95 35 . Level 2 13 | . . . . . . . . . . . . . . . . . . . . . 7 63 88 . 31 4 Level 3 9 | . . . . . . . . . . . . . . . . . . . . . . 18 . . 7 36 Level 4 8 | . . . . . . . . . . . . . . . . . . . . . . . . . 16 38 Level 5 4 | . . . . . . . . . . . . . . . . . . . . . . . . . . 21 High Security . | . . . . . . . . . . . . . . . . . . . . . . . . . . . Max Security . | . . . . . . . . . . . . . . . . . . . . . . . . . . . Peak Influence 1704 | . 60 50 . 5 . 278 124 . . . . 97 . . . 92 . . . . 685 763 531 378 1238 1704 Initial 612 | . . 11 . . . . 119 . . . . . . . . 34 . . . . 81 315 381 190 118 612 Average 409 | . 17 5 . 1 . 128 50 . . . . 54 . . . 30 . . . . 191 572 482 334 575 1240 Influence Increases 9608 | . 90 105 . 10 . 628 386 85 90 . 230 180 . . 329 224 250 279 . 813 1199 759 275 208 1612 1856 Destroy 0b10 Robot/C 4220 | . . 80 . . . 280 40 60 80 . 140 20 . . 260 120 220 180 . 480 400 300 80 80 440 960 Destroy 0b10 Robot/NC 305 | . 10 . . 10 . 40 20 . . . 10 5 . . 5 . . 5 . 25 35 25 5 . 45 65 Destroy Leader 770 | . . 20 . . . 52 20 10 10 . 20 10 . . 10 40 10 20 . 50 96 44 . . 138 220 Allied During Kill 1791 | . . 5 . . . . . . . . 60 14 . . 24 35 20 74 . 243 70 229 85 80 487 365 Successful Hack 45 | . . . . . . 21 24 . . . . . . . . . . . . . . . . . . . Disable Machine 870 | . 30 . . . . 75 60 . . . . 90 . . . 15 . . . . 120 45 45 30 270 90 Destroy Structure 1217 | . 35 . . . . 130 27 . . . . 41 . . . 14 . . . . 448 116 60 18 202 126 Partial Spotted 90 | . . . . . . 15 75 . . . . . . . . . . . . . . . . . . . Lose Combat Pursuer 300 | . 15 . . . . 15 120 15 . . . . . . 30 . . . . 15 30 . . . 30 30 Influence Decreases 8096 | . 60 119 16 10 . 366 532 201 40 50 230 110 56 14 274 211 294 278 25 684 685 720 481 346 784 1510 Entered New Map 2127 | . . 19 16 . . . 143 44 . 50 . . 26 14 . 21 26 6 25 . 48 328 301 286 220 554 Time Decay 4485 | . 50 85 . 10 . 276 349 150 40 . 230 110 30 . 222 170 238 272 . 534 427 342 120 50 254 526 Lost Part 717 | . 10 . . . . 90 40 7 . . . . . . 20 . 10 . . 10 70 20 20 10 90 320 Lost Ally 767 | . . 15 . . . . . . . . . . . . 32 20 20 . . 140 140 30 40 . 220 110 Squads Dispatched 35 | . 1 . . . . 2 7 . . . . . . . . 2 . . . . 5 1 . . 7 10 Investigation 4 | . 1 . . . . 1 2 . . . . . . . . . . . . . . . . . . . Extermination 11 | . . . . . . . 3 . . . . . . . . 1 . . . . 3 . . . 1 3 Reinforcement 15 | . . . . . . 1 2 . . . . . . . . 1 . . . . 2 1 . . 5 3 Assault 5 | . . . . . . . . . . . . . . . . . . . . . . . . . 1 4 Garrison . | . . . . . . . . . . . . . . . . . . . . . . . . . . . Intercept . | . . . . . . . . . . . . . . . . . . . . . . . . . . . Searches Triggered . | . . . . . . . . . . . . . . . . . . . . . . . . . . . Data Miner Redirects 2 | . . . . . . . . . . . . . . . . . . . . . . . . . 1 1 Construction Impeded 3 | . . . . . . 1 . . . . . . . . . . . . . . 1 . . . 1 . Haulers Reinforced 1 | . . . . . . . . . . . . . . . . . . . . . . . . . 1 . Active Scanning Responses . | . . . . . . . . . . . . . . . . . . . . . . . . . . . Cargo Convoy Interrupts 2 | . . . . . . . 1 . . . . . . . . . . . . . 1 . . . . . Stealth | -11 -10 -10 -10 -9 -8 -8 -7 -7 -7 -7 -6 -6 -6 -6 -5 -5 -5 -5 -5 -4 -4 -4 -4 -4 -4 -3 --------- Run | Yrd Mat Min Exi Min Mat Sto Fac Low Low Zio Pro Fac Low Dat Pro Fac Upp Upp War Pro Fac Ext Cet Arc Hub Res Distress Signals 66 | . . . . . . . 2 . . . . . . . . . . . . 52 2 4 1 . 3 2 Communications Jammed . | . . . . . . . . . . . . . . . . . . . . . . . . . . . Distress Signals . | . . . . . . . . . . . . . . . . . . . . . . . . . . . Times Spotted 342 | . 2 6 . . . 26 26 14 2 . 9 1 . . 19 9 12 13 1 31 42 20 4 4 39 62 Peak Tracking Total 12 | . 1 2 . . . 6 9 4 4 . 3 1 . . 6 3 7 5 1 5 12 5 5 3 12 8 Tactical Retreats 25 | . 1 2 . . . 2 10 4 . . . . . . 2 . . . . 1 1 . . . 1 1 ECM-based Alert Blocks 23 | . . 2 . . . 1 11 9 . . . . . . . . . . . . . . . . . . Traps | -11 -10 -10 -10 -9 -8 -8 -7 -7 -7 -7 -6 -6 -6 -6 -5 -5 -5 -5 -5 -4 -4 -4 -4 -4 -4 -3 ------- Run | Yrd Mat Min Exi Min Mat Sto Fac Low Low Zio Pro Fac Low Dat Pro Fac Upp Upp War Pro Fac Ext Cet Arc Hub Res Traps Triggered 4 | . . . . . . 1 1 . . . . . . . . . . . . . 1 1 . . . . Indirectly 1 | . . . . . . . . . . . . . . . . . . . . . . 1 . . . . Trap Hack Attempts . | . . . . . . . . . . . . . . . . . . . . . . . . . . . Triggered . | . . . . . . . . . . . . . . . . . . . . . . . . . . . Disarmed . | . . . . . . . . . . . . . . . . . . . . . . . . . . . Reprogrammed . | . . . . . . . . . . . . . . . . . . . . . . . . . . . Reused . | . . . . . . . . . . . . . . . . . . . . . . . . . . . Traps Extracted . | . . . . . . . . . . . . . . . . . . . . . . . . . . . Installed . | . . . . . . . . . . . . . . . . . . . . . . . . . . . Triggered . | . . . . . . . . . . . . . . . . . . . . . . . . . . . Machines | -11 -10 -10 -10 -9 -8 -8 -7 -7 -7 -7 -6 -6 -6 -6 -5 -5 -5 -5 -5 -4 -4 -4 -4 -4 -4 -3 ---------- Run | Yrd Mat Min Exi Min Mat Sto Fac Low Low Zio Pro Fac Low Dat Pro Fac Upp Upp War Pro Fac Ext Cet Arc Hub Res Machines Disabled 68 | . 2 . . . . 5 4 . . . . 6 . . . 1 2 . . 8 8 3 3 2 18 6 Max in Single Turn 4 | . 2 . . . . 2 1 . . . . 2 . . . 1 1 . . 3 4 1 1 2 1 1 Network Hub 1 | . . . . . . . . . . . . . . . . . . . . . . . . . 1 . Energy Cycler 1 | . . . . . . . . . . . . . . . . . . . . . . 1 . . . . Machines Repaired . | . . . . . . . . . . . . . . . . . . . . . . . . . . . Machines Dismantled 13 | . . . . . . . . . . . . . . . . . . . . . . . 3 . 8 2 Machines Sabotaged . | . . . . . . . . . . . . . . . . . . . . . . . . . . . Overloaded Fab Kills . | . . . . . . . . . . . . . . . . . . . . . . . . . . . Hacking | -11 -10 -10 -10 -9 -8 -8 -7 -7 -7 -7 -6 -6 -6 -6 -5 -5 -5 -5 -5 -4 -4 -4 -4 -4 -4 -3 --------- Run | Yrd Mat Min Exi Min Mat Sto Fac Low Low Zio Pro Fac Low Dat Pro Fac Upp Upp War Pro Fac Ext Cet Arc Hub Res Machines Accessed 26 | . 1 . 1 . 1 5 9 . . . . . . 4 . 1 . . . . . 2 1 . . 1 Terminals 18 | . 1 . . . 1 5 8 . . . . . . . . . . . . . . 2 1 . . . Fabricators 1 | . . . . . . . . . . . . . . . . 1 . . . . . . . . . . Repair Stations . | . . . . . . . . . . . . . . . . . . . . . . . . . . . Recycling Units . | . . . . . . . . . . . . . . . . . . . . . . . . . . . Scanalyzers 2 | . . . . . . . 1 . . . . . . . . . . . . . . . . . . 1 Garrison Access . | . . . . . . . . . . . . . . . . . . . . . . . . . . . Total Hacks 98 | . 3 . 23 . 1 15 20 . . . . . . 29 . 1 . . . . . 2 2 . . 2 Successful 64 | . 1 . 23 . . 4 6 . . . . . . 29 . . . . . . . . . . . 1 Failed 33 | . 2 . . . 1 11 14 . . . . . . . . 1 . . . . . 2 2 . . . Catastrophic 5 | . . . . . 1 . 2 . . . . . . . . . . . . . . 1 1 . . . Database Lockouts 1 | . . . . . . . . . . . . . . . . . . . . . . . . . . 1 Manual 83 | . 3 . . . 1 5 7 . . . . 8 . . 1 20 . . 1 . 8 11 . . 4 14 Terminals 41 | . 3 . . . 1 15 18 . . . . . . . . . . . . . . 2 2 . . . Fabricators 1 | . . . . . . . . . . . . . . . . 1 . . . . . . . . . . Repair Stations . | . . . . . . . . . . . . . . . . . . . . . . . . . . . Recycling Units . | . . . . . . . . . . . . . . . . . . . . . . . . . . . Scanalyzers 4 | . . . . . . . 2 . . . . . . . . . . . . . . . . . . 2 Garrison Access . | . . . . . . . . . . . . . . . . . . . . . . . . . . . Terminal Hacks 60 | . 1 . 23 . . 4 3 . . . . . . 29 . . . . . . . . . . . . Record 34 | . . . 23 . . . . . . . . . . 11 . . . . . . . . . . . . Part Schematic 10 | . . . . . . . . . . . . . . 10 . . . . . . . . . . . . Robot Schematic 6 | . 1 . . . . . . . . . . . . 5 . . . . . . . . . . . . Prototype ID Bank 3 | . . . . . . . . . . . . . . 3 . . . . . . . . . . . . Open Door 2 | . . . . . . 2 . . . . . . . . . . . . . . . . . . . . Level Access Points 1 | . . . . . . 1 . . . . . . . . . . . . . . . . . . . . Branch Access Points 1 | . . . . . . . 1 . . . . . . . . . . . . . . . . . . . Terminal Index 1 | . . . . . . 1 . . . . . . . . . . . . . . . . . . . . Zone Layout 2 | . . . . . . . 2 . . . . . . . . . . . . . . . . . . . Fabricator Hacks . | . . . . . . . . . . . . . . . . . . . . . . . . . . . Repair Station Hacks . | . . . . . . . . . . . . . . . . . . . . . . . . . . . Recycling Unit Hacks . | . . . . . . . . . . . . . . . . . . . . . . . . . . . Scanalyzer 3 | . . . . . . . 2 . . . . . . . . . . . . . . . . . . 1 Retrieve Study 3 | . . . . . . . 2 . . . . . . . . . . . . . . . . . . 1 Garrison Access Hacks . | . . . . . . . . . . . . . . . . . . . . . . . . . . . Unauthorized Hacks 1 | . . . . . . . 1 . . . . . . . . . . . . . . . . . . . Terminals 1 | . . . . . . . 1 . . . . . . . . . . . . . . . . . . . Assimilate 1 | . . . . . . . 1 . . . . . . . . . . . . . . . . . . . Fabricators . | . . . . . . . . . . . . . . . . . . . . . . . . . . . Repair Stations . | . . . . . . . . . . . . . . . . . . . . . . . . . . . Recycling Units . | . . . . . . . . . . . . . . . . . . . . . . . . . . . Scanalyzers . | . . . . . . . . . . . . . . . . . . . . . . . . . . . Garrison Access . | . . . . . . . . . . . . . . . . . . . . . . . . . . . Data Cores Recovered 1 | . . . . . . . . . . . . . . . . . . . . . . 1 . . . . Used . | . . . . . . . . . . . . . . . . . . . . . . . . . . . Hacking Detections 17 | . 1 . . . 1 4 7 . . . . . . . . 1 . . . . . 2 1 . . . Full Trace Events 4 | . 1 . . . . 1 2 . . . . . . . . . . . . . . . . . . . Feedback Events 1 | . . . . . . . 1 . . . . . . . . . . . . . . . . . . . Corruption 1 | . . . . . . . 1 . . . . . . . . . . . . . . . . . . . Feedback Blocked . | . . . . . . . . . . . . . . . . . . . . . . . . . . . Robot Schematics Acquired 6 | . 1 . . . . . . . . . . . . 5 . . . . . . . . . . . . Robots Built . | . . . . . . . . . . . . . . . . . . . . . . . . . . . Authchips . | . . . . . . . . . . . . . . . . . . . . . . . . . . . Time . | . . . . . . . . . . . . . . . . . . . . . . . . . . . Total Robot Build Rating . | . . . . . . . . . . . . . . . . . . . . . . . . . . . Part Schematics Acquired 10 | . . . . . . . . . . . . . . 10 . . . . . . . . . . . . Parts Built . | . . . . . . . . . . . . . . . . . . . . . . . . . . . Authchips . | . . . . . . . . . . . . . . . . . . . . . . . . . . . Time . | . . . . . . . . . . . . . . . . . . . . . . . . . . . Total Part Build Rating . | . . . . . . . . . . . . . . . . . . . . . . . . . . . Part Studies Acquired 3 | . . . . . . . 2 . . . . . . . . . . . . . . . . . . 1 Parts Repaired . | . . . . . . . . . . . . . . . . . . . . . . . . . . . Time . | . . . . . . . . . . . . . . . . . . . . . . . . . . . Parts Recycled . | . . . . . . . . . . . . . . . . . . . . . . . . . . . Recycled Matter . | . . . . . . . . . . . . . . . . . . . . . . . . . . . Retrieved Matter . | . . . . . . . . . . . . . . . . . . . . . . . . . . . Retrieved Components . | . . . . . . . . . . . . . . . . . . . . . . . . . . . Parts Scanalyzed . | . . . . . . . . . . . . . . . . . . . . . . . . . . . Part Schematics Acquired . | . . . . . . . . . . . . . . . . . . . . . . . . . . . Parts Damaged . | . . . . . . . . . . . . . . . . . . . . . . . . . . . Bothacking | -11 -10 -10 -10 -9 -8 -8 -7 -7 -7 -7 -6 -6 -6 -6 -5 -5 -5 -5 -5 -4 -4 -4 -4 -4 -4 -3 ------------ Run | Yrd Mat Min Exi Min Mat Sto Fac Low Low Zio Pro Fac Low Dat Pro Fac Upp Upp War Pro Fac Ext Cet Arc Hub Res Used RIF Installer . | . . . . . . . . . . . . . . . . . . . . . . . . . . . Robots Hacked 3 | . . . . . . . . . . . . . . . . . . 1 . 1 . 1 . . . . Non-combat 1 | . . . . . . . . . . . . . . . . . . 1 . . . . . . . . Combat . | . . . . . . . . . . . . . . . . . . . . . . . . . . . Robot Hacks Applied 1 | . . . . . . . . . . . . . . . . . . 1 . . . . . . . . no_distress 1 | . . . . . . . . . . . . . . . . . . 1 . . . . . . . . Manual 2 | . . . . . . . . . . . . . . . . . . . . 1 . 1 . . . . Relay Couplers Released . | . . . . . . . . . . . . . . . . . . . . . . . . . . . Fabnet Peak Effective % . | . . . . . . . . . . . . . . . . . . . . . . . . . . . Robots Rewired 18 | . . . . . . . . . . . . . . . . . 5 . 5 3 . 5 . . . . Allies Hacked 5 | . . . . . . . . . . . . . . . 1 . . . . . 1 . . . . 3 Hacks Repelled 1 | . . . . . . . . . . . . . . . . . . . . . 1 . . . . . Allies | -11 -10 -10 -10 -9 -8 -8 -7 -7 -7 -7 -6 -6 -6 -6 -5 -5 -5 -5 -5 -4 -4 -4 -4 -4 -4 -3 -------- Run | Yrd Mat Min Exi Min Mat Sto Fac Low Low Zio Pro Fac Low Dat Pro Fac Upp Upp War Pro Fac Ext Cet Arc Hub Res Total Allies 65 | . . 3 . . . . . . . 4 . 7 . . . 5 5 . 5 4 6 13 . . 6 7 Largest Group 15 | . . 3 . . . . . . . 4 4 8 8 8 8 4 5 5 9 9 6 11 11 9 15 5 Highest-Rated Group 1018 | . . 40 . . . . . . . 155 155 233 233 233 233 114 145 145 368 376 494 583 551 458 1018 425 Highest-Rated Ally 269 | . . 16 . . . . . . . 41 41 41 37 37 37 31 29 29 64 116 103 146 146 146 146 269 Zionite Dispatches 17 | . . . . . . . . . . . . 2 . . . 3 . . . . 3 3 . . 2 4 Heavy 1 | . . . . . . . . . . . . . . . . . . . . . 1 . . . . . Light 2 | . . . . . . . . . . . . . . . . . . . . . . . . . 2 . Fire 5 | . . . . . . . . . . . . 2 . . . 1 . . . . . 1 . . . 1 Hacker 1 | . . . . . . . . . . . . . . . . . . . . . 1 . . . . . Demo 1 | . . . . . . . . . . . . . . . . . . . . . 1 . . . . . Experimental 1 | . . . . . . . . . . . . . . . . . . . . . . . . . . 1 Hero 1 | . . . . . . . . . . . . . . . . . . . . . . 1 . . . . Thermal Resupply 1 | . . . . . . . . . . . . . . . . 1 . . . . . . . . . . Melee Resupply 1 | . . . . . . . . . . . . . . . . . . . . . . 1 . . . . Infowar Resupply 1 | . . . . . . . . . . . . . . . . . . . . . . . . . . 1 Hacking Resupply 1 | . . . . . . . . . . . . . . . . 1 . . . . . . . . . . Zionite Resupply 1 | . . . . . . . . . . . . . . . . . . . . . . . . . . 1 Total Orders 12 | . . . . . . . . . . . . . . . . 4 . . . 2 . 2 . . . 4 STAY 3 | . . . . . . . . . . . . . . . . 2 . . . 1 . . . . . . ROAM 1 | . . . . . . . . . . . . . . . . . . . . . . . . . . 1 FOLLOW 1 | . . . . . . . . . . . . . . . . . . . . 1 . . . . . . DROP 5 | . . . . . . . . . . . . . . . . 2 . . . . . 1 . . . 2 PICKUP 1 | . . . . . . . . . . . . . . . . . . . . . . 1 . . . . EXPLORE 1 | . . . . . . . . . . . . . . . . . . . . . . . . . . 1 Ally Attacks 684 | . . 16 . . . . . . . . 19 6 . . 8 19 26 61 . 139 49 47 23 21 122 128 Total Damage 27653 | . . 173 . . . . . . . . 588 41 . . 120 326 422 899 . 3483 2845 1990 673 671 5714 9708 Kills 155 | . . 1 . . . . . . . . 7 1 . . 2 3 5 7 . 19 19 12 4 4 27 44 Allies Corrupted . | . . . . . . . . . . . . . . . . . . . . . . . . . . . Allies Melted 1 | . . . . . . . . . . . . . . . . . . . . . . 1 . . . . Intel | -11 -10 -10 -10 -9 -8 -8 -7 -7 -7 -7 -6 -6 -6 -6 -5 -5 -5 -5 -5 -4 -4 -4 -4 -4 -4 -3 ------- Run | Yrd Mat Min Exi Min Mat Sto Fac Low Low Zio Pro Fac Low Dat Pro Fac Upp Upp War Pro Fac Ext Cet Arc Hub Res Active Infowar (turns) 15446 | . 52 636 . . . 185 846 355 156 965 1070 275 62 156 676 507 503 877 547 3276 1167 762 241 119 555 1458 Optics 348 | . . . . . . . . . . . . . . . . 346 . . . . . . . . . 2 Sensors 10210 | . . . . . . . 668 355 156 965 1070 275 62 156 676 435 404 762 539 866 1157 428 . . . 1236 Terrain 1270 | . . . . . . . 81 . . . . . . . . . . . . . 445 . . . 243 501 Structural 1428 | . . . . . . 144 88 . . . . . . . . . . . . . . . . . . 1196 Traps 1 | . . . . . . . . . . . . . . . . . . . . . . . . . . 1 Decoding 11951 | . . . . . . . . . . 894 1070 275 62 156 676 507 503 877 547 3276 1167 762 241 119 555 264 ECM 898 | . 52 636 . . . 41 98 71 . . . . . . . . . . . . . . . . . . Robot Analysis Total . | . . . . . . . . . . . . . . . . . . . . . . . . . . . Derelict Logs Recovered 10 | . . 1 . . . . . 1 2 1 . . . . 2 . 1 1 . 1 . . . . . . Drone Launches 1 | . . . . . . . . . . . . . . . . . . . . . . . . . . 1 Drone Recoveries . | . . . . . . . . . . . . . . . . . . . . . . . . . . . Decoded 0b10 Intel 53 | . . . . . . . . . . . . 5 . . . 5 . . . . 20 7 . 2 9 5 Traps 32 | . . . . . . . . . . . . . . . . 5 . . . . 18 6 . . 3 . Emergency Access 12 | . . . . . . . . . . . . 4 . . . . . . . . . . . . 6 2 Items 3 | . . . . . . . . . . . . . . . . . . . . . . . . . . 3 Garrisons 1 | . . . . . . . . . . . . 1 . . . . . . . . . . . . . . Exits 5 | . . . . . . . . . . . . . . . . . . . . . 2 1 . 2 . . Zionite Intel Received 6 | . . . . . . . . . . . . 1 . . . 3 . . . . . 1 . . . 1 Branch Access 2 | . . . . . . . . . . . . 1 . . . 1 . . . . . . . . . . Emergency Access 1 | . . . . . . . . . . . . . . . . 1 . . . . . . . . . . Trap Installations 1 | . . . . . . . . . . . . . . . . . . . . . . 1 . . . . Active Terminals 1 | . . . . . . . . . . . . . . . . . . . . . . . . . . 1 Depthwide Sectors/0 1 | . . . . . . . . . . . . . . . . 1 . . . . . . . . . . Exploration | -11 -10 -10 -10 -9 -8 -8 -7 -7 -7 -7 -6 -6 -6 -6 -5 -5 -5 -5 -5 -4 -4 -4 -4 -4 -4 -3 ------------- Run | Yrd Mat Min Exi Min Mat Sto Fac Low Low Zio Pro Fac Low Dat Pro Fac Upp Upp War Pro Fac Ext Cet Arc Hub Res Turns Passed 16522 | 62 187 661 249 63 29 626 905 355 156 965 1070 275 62 156 676 507 503 877 547 3276 1167 762 241 119 555 1471 Spaces Moved 12745 | 59 193 676 309 59 37 616 1498 522 316 1064 518 187 33 95 510 425 364 628 361 1782 772 505 136 58 337 685 Core 51 | 5 . . . . . 2 . . . . . . . . . . . . . 17 . . . . . 27 Treads 27 | . . . . . . . . . . . . . . . . . . . . . . . . . . 27 Legs 4038 | . . . . . . . . . . . . . . . . . . . . 1620 772 505 136 58 337 610 Wheels 5672 | 54 193 676 309 59 37 246 . 4 17 790 518 187 33 95 510 425 364 628 361 145 . . . . . 21 Hover . | . . . . . . . . . . . . . . . . . . . . . . . . . . . Flight 2957 | . . . . . . 368 1498 518 299 274 . . . . . . . . . . . . . . . . Fastest Speed 23 | 50 80 80 80 80 80 26 23 26 26 26 105 90 90 90 90 90 90 90 105 105 118 120 120 120 117 50 Average Speed 90 | 79 80 81 80 80 80 59 26 27 29 82 105 90 90 90 90 90 90 96 105 135 122 120 120 156 120 147 Slowest Speed 1050 | 100 95 95 80 80 80 200 91 105 90 105 105 90 90 90 90 90 105 105 105 1050 190 120 120 190 190 385 Overloaded Moves 32 | . . . . . . . 32 . . . . . . . . . . . . . . . . . . . Propulsion Burnouts . | . . . . . . . . . . . . . . . . . . . . . . . . . . . Robots Hopped 12 | . . . . . . 5 5 . . 2 . . . . . . . . . . . . . . . . Potential Cave-ins 19 | . . . . . . . . . 5 . . . . . 2 . . . . . . . . . . 12 Cave-ins Triggered . | . . . . . . . . . . . . . . . . . . . . . . . . . . . Exploration Rate (%) 49 | 3 40 97 65 18 4 53 40 70 45 90 56 7 9 70 63 17 61 76 57 92 19 74 74 72 43 29 Regions Visited 26 Branch Regions 19 Pre-discovered Areas 7 | . . . 1 . . . . . . . . . . 1 . 5 . . . . . . . . . . Known Exits Taken 24 | . . 1 1 1 1 1 1 1 1 1 1 1 1 1 1 1 1 1 1 1 1 1 1 1 1 . Unknown Exits Taken 2 | 1 1 . . . . . . . . . . . . . . . . . . . . . . . . . Scrap Searched 24 | . . 1 . . . . . 1 3 4 . . . . 4 . 4 2 . 5 . . . . . . Spaces Dug 143 | . . . . . . 8 27 12 11 . . . . . 32 4 . . . 3 11 2 . . 2 31 Terrain Destroyed 805 | . 38 . . . . 143 27 12 54 . 9 45 . . 146 7 8 11 . 10 65 57 87 . 43 43 Melee 69 | . . . . . . . 26 12 2 . . . . . 3 . . . . 3 9 2 . . 2 10 Projectile 95 | . . . . . . . 1 . 9 . 5 . . . 11 7 8 11 . 6 4 . . . 1 32 AOE 641 | . 38 . . . . 143 . . 43 . 4 45 . . 132 . . . . 1 52 55 87 . 40 1 Terrain Rammed . | . . . . . . . . . . . . . . . . . . . . . . . . . . . Walls Destroyed . | . . . . . . . . . . . . . . . . . . . . . . . . . . . Machines Disabled . | . . . . . . . . . . . . . . . . . . . . . . . . . . . Actions | -11 -10 -10 -10 -9 -8 -8 -7 -7 -7 -7 -6 -6 -6 -6 -5 -5 -5 -5 -5 -4 -4 -4 -4 -4 -4 -3 --------- Run | Yrd Mat Min Exi Min Mat Sto Fac Low Low Zio Pro Fac Low Dat Pro Fac Upp Upp War Pro Fac Ext Cet Arc Hub Res Total 16794 | 71 215 755 314 65 36 801 1915 707 365 1151 1023 285 65 165 670 542 502 864 523 2519 936 625 183 83 428 986 Wait 2506 | . 1 58 . . . 71 267 133 2 58 485 74 33 71 83 58 85 193 131 527 47 34 15 18 13 49 Move 12697 | 58 192 675 308 58 36 606 1488 521 315 1059 517 186 32 94 509 424 363 627 360 1781 771 504 135 57 336 685 Hop 10 | . . . . . . 4 4 . . 2 . . . . . . . . . . . . . . . . Pick Up 136 | 5 4 1 3 1 . 6 18 3 10 14 . 5 . . 9 14 3 . 3 11 9 3 . 1 2 11 Fast Attach 153 | 7 6 1 . . . 23 11 2 2 3 1 2 . . 1 5 4 5 6 10 11 5 . 1 5 42 Attach 93 | . 1 . . . . 3 9 13 9 4 . 2 . . 2 3 1 3 2 2 6 3 2 . 6 22 Detach 53 | . . . . . . 4 3 12 2 2 . . . . . 3 . . 2 1 2 3 . 1 2 16 Swap 185 | . 2 1 . . . 14 37 . . 2 . 1 . . 8 4 4 6 3 30 19 17 4 1 10 22 Drop 203 | 1 5 3 3 1 . 20 27 6 11 7 1 6 . . 8 16 4 1 6 29 19 9 . 1 4 15 Fire 488 | . 4 16 . 5 . 50 2 . 12 . 19 9 . . 39 15 31 27 10 104 39 21 7 3 10 65 Melee 188 | . . . . . . . 49 17 2 . . . . . 11 . 7 2 . 21 13 11 1 . 7 47 Ram . | . . . . . . . . . . . . . . . . . . . . . . . . . . . Kick . | . . . . . . . . . . . . . . . . . . . . . . . . . . . Crush . | . . . . . . . . . . . . . . . . . . . . . . . . . . . Escape Stasis . | . . . . . . . . . . . . . . . . . . . . . . . . . . . Rewire 18 | . . . . . . . . . . . . . . . . . . . . 3 . 15 . . . . Trap . | . . . . . . . . . . . . . . . . . . . . . . . . . . . Miscellaneous 64 | . . . . . . . . . . . . . . . . . . . . . . . 19 . 33 12 Route ------- -11/Scrapyard -10/Materials -10/Mines (discovered 3 exits: [*Mat x2] / *Exi) -10/Exiles -9/Mines -8/Materials -8/Storage -7/Factory (discovered 3 exits: *Fac / *Low x2) -7/Lower Caves -7/Lower Caves -7/Zion -6/Proximity Caves -6/Factory (discovered 2 exits: *Low x2) -6/Lower Caves -6/Data Miner -5/Proximity Caves -5/Factory (discovered 2 exits: *Upp x2) -5/Upper Caves -5/Upper Caves (discovered 2 exits: *Fac / *War) -5/Warlord -4/Proximity Caves -4/Factory (discovered 3 exits: Res / *Upp / *Ext) -4/Extension (discovered 3 exits: *Res x2 / *Cet) -4/Cetus -4/Archives (discovered 3 exits: *Res / *Hub x2) -4/Hub_04(d) (discovered 2 exits: *Res x2) -3/Research History --------- Turn | Location | Event 22 | -11/Scrapyard | Discovered new exit (range 14) 63 | -11/Scrapyard | Entered Materials 229 | -10/Materials | Discovered new exit (range 16) 250 | -10/Materials | Entered Mines 314 | -10/Mines | Build established: Mutant 316 | -10/Mines | Met a Derelict bent on vengeance 316 | -10/Mines | Discovered new exit (range 12) 507 | -10/Mines | Discovered new exit (range 4) 513 | -10/Mines | Assisted by bots powering up and referring to "LRC-V3" 747 | -10/Mines | Learned Materials garrison access intel 907 | -10/Mines | Deemed a non-threat by the Exiles lab entrance 907 | -10/Mines | Discovered new exit (range 5) 910 | -10/Mines | Identified exit to Exiles 911 | -10/Mines | Entered Exiles 930 | -10/Exiles | Met 8R-AWN 945 | -10/Exiles | Met EX-HEX 976 | -10/Exiles | Met EX-DEC 981 | -10/Exiles | Learned location of Zion (-7) 1013 | -10/Exiles | Visited The Gauntlet 1075 | -10/Exiles | Discovered new exit (range 14) 1158 | -10/Exiles | Identified exit to Mines 1160 | -10/Exiles | Entered Mines 1217 | -9/Mines | Discovered new exit (range 5) 1223 | -9/Mines | Identified exit to Materials 1223 | -9/Mines | Entered Materials 1223 | -8/Materials | Evolved 4 slots: Propulsion x2, Utility x2 1223 | -8/Materials | Discovered new exit (range 14) 1224 | -8/Materials | Loaded intel: 1 garrison access location 1234 | -8/Materials | Identified exit to Storage 1252 | -8/Materials | Entered Storage 1272 | -8/Storage | Identified exit to Factory 1733 | -8/Storage | Lost 6 parts (1p1n1u3w) 1878 | -8/Storage | Entered Factory 1878 | -7/Factory | Evolved 2 slots: Propulsion x1, Utility x1 2119 | -7/Factory | Build established: Sprinter 2564 | -7/Factory | Cargo convoy interrupted 2617 | -7/Factory | Discovered new exit (range 11) 2631 | -7/Factory | Identified exit to Factory 2637 | -7/Factory | Identified exit to Lower Caves 2783 | -7/Factory | Entered Lower Caves 2785 | -7/Lower Caves | Identified exit to Lower Caves 3138 | -7/Lower Caves | Entered another Lower Caves area 3259 | -7/Lower Caves | Learned location of 1 exit from Factory 3287 | -7/Lower Caves | Encountered a Warlord checkpoint 3292 | -7/Lower Caves | Discovered new exit (range 9) 3293 | -7/Lower Caves | Identified exit to Zion 3294 | -7/Lower Caves | Entered Zion 3304 | -7/Zion | System corruption cleaned by Quarantine Array 3311 | -7/Zion | Discovered new exit (range 16) 3315 | -7/Zion | Identified exit to Proximity Caves 3631 | -7/Zion | Visited the Megawrench Repair Shop 3633 | -7/Zion | Megawrench repaired 6 parts 3671 | -7/Zion | Build established: Mutant 3685 | -7/Zion | Met Imprinter 3703 | -7/Zion | Imprinted 3705 | -7/Zion | Declared Zion's savior 3902 | -7/Zion | Learned Factory trap positions 4259 | -7/Zion | Entered Proximity Caves 4259 | -6/Proximity Caves | Accompanied by 4 allies 4421 | -6/Proximity Caves | Attracted the attention of an 0b10 checkpoint 4636 | -6/Proximity Caves | Received a Behemoth hack from an annoying Tinkerer 5299 | -6/Proximity Caves | Discovered exit to Factory (range 11) 5329 | -6/Proximity Caves | Entered Factory 5329 | -6/Factory | Accompanied by 2 allies 5329 | -6/Factory | Evolved 2 slots: Propulsion x1, Utility x1 5330 | -6/Factory | Identified exit to Lower Caves 5332 | -6/Factory | Loaded intel: 75 trap records 5507 | -6/Factory | Retrieved Zion intel report: Branch Access 5508 | -6/Factory | Zion Fire squad teleported in 5572 | -6/Factory | Zion Fire squad teleported in 5604 | -6/Factory | Entered Lower Caves 5604 | -6/Lower Caves | Accompanied by 8 allies 5626 | -6/Lower Caves | A Derelict revealed a hidden shortcut to meet someone special 5638 | -6/Lower Caves | Identified exit to Data Miner 5666 | -6/Lower Caves | Entered Data Miner 5666 | -6/Data Miner | Accompanied by 8 allies 5666 | -6/Data Miner | Discovered new exit (range 6) 5685 | -6/Data Miner | Met Data Miner 5737 | -6/Data Miner | Learned location of Section 7 (-2) 5737 | -6/Data Miner | Acquired the access code to Warlord's prototype stash 5757 | -6/Data Miner | Received God Mode back door access code from Data Miner 5816 | -6/Data Miner | Identified exit to Proximity Caves 5822 | -6/Data Miner | Entered Proximity Caves 5822 | -5/Proximity Caves | Accompanied by 8 allies 5881 | -5/Proximity Caves | Acquired the password to a Derelict Tinkerer's latest research 5915 | -5/Proximity Caves | Identified exit to Factory 5916 | -5/Proximity Caves | Learned Factory interactive machine intel 5993 | -5/Proximity Caves | Caught by Unaware searching for contraband prototypes 6003 | -5/Proximity Caves | Caught by Unaware searching for contraband prototypes 6041 | -5/Proximity Caves | Lost 7 allies 6304 | -5/Proximity Caves | Unaware initiated a cargo recovery operation 6310 | -5/Proximity Caves | Build established: Derelict-Mutant 6437 | -5/Proximity Caves | Attracted the attention of an 0b10 checkpoint 6498 | -5/Proximity Caves | Entered Factory 6498 | -5/Factory | Evolved 2 slots: Utility x2 6499 | -5/Factory | Loaded intel: 54 interactive machine locations 6629 | -5/Factory | Retrieved Zion intel report: Branch Access 6629 | -5/Factory | Identified exit to Upper Caves 6630 | -5/Factory | Zion Fire squad teleported in 6652 | -5/Factory | Zion Hacking Resupply teleported in 6686 | -5/Factory | Retrieved Zion intel report: Depthwide Sectors/-5 6743 | -5/Factory | Spotted B-75 Beast 6748 | -5/Factory | Allies destroyed B-75 Beast 6891 | -5/Factory | Retrieved Zion intel report: Emergency Access 6892 | -5/Factory | Zion Thermal Resupply teleported in 7005 | -5/Factory | Entered Upper Caves 7005 | -5/Upper Caves | Accompanied by 2 allies 7008 | -5/Upper Caves | Attracted the attention of an 0b10 outpost 7254 | -5/Upper Caves | Found Alien Artifact 7254 | -5/Upper Caves | Identified Dimensional Node Initializer 7254 | -5/Upper Caves | Initialized slip node 7331 | -5/Upper Caves | Learned Factory emergency access door positions 7422 | -5/Upper Caves | Discovered new exit (range 15) 7436 | -5/Upper Caves | Identified exit to Upper Caves 7454 | -5/Upper Caves | Attacked by a delusional Derelict stockpiling Unaware 7508 | -5/Upper Caves | Entered another Upper Caves area 7508 | -5/Upper Caves | Accompanied by 5 allies 7590 | -5/Upper Caves | Discovered new exit (range 2) 7590 | -5/Upper Caves | Identified exit to Factory 7754 | -5/Upper Caves | Build established: Commander-Mutant 7936 | -5/Upper Caves | Spotted B-75 Beast 7954 | -5/Upper Caves | Destroyed B-75 Beast 7984 | -5/Upper Caves | Lost 6 parts (1p3n2u) 8023 | -5/Upper Caves | System corruption reached 10% 8210 | -5/Upper Caves | Attracted the attention of an 0b10 checkpoint 8250 | -5/Upper Caves | Build established: Scavenger-Mutant 8309 | -5/Upper Caves | Discovered new exit (range 8) 8317 | -5/Upper Caves | Identified exit to Warlord 8333 | -5/Upper Caves | Ambushed by wild Derelicts 8385 | -5/Upper Caves | Entered Warlord 8385 | -5/Warlord | Accompanied by 4 allies 8450 | -5/Warlord | System corruption cleaned by Quarantine Array 8550 | -5/Warlord | Opened Warlord's prototype stash 8555 | -5/Warlord | Found Prototype Processor 8555 | -5/Warlord | Identified Exp. Armor Integrity Analyzer 8562 | -5/Warlord | Found Prototype Processor 8562 | -5/Warlord | Identified Exp. Targeting Computer 8566 | -5/Warlord | Found Prototype Reactor 8659 | -5/Warlord | Received a Watcher feed algorithm from an ecstatic Tinkerer 8880 | -5/Warlord | Discovered new exit (range 12) 8891 | -5/Warlord | Identified exit to Proximity Caves 8929 | -5/Warlord | Build established: Commander-Mutant 8932 | -5/Warlord | Entered Proximity Caves 8932 | -4/Proximity Caves | Accompanied by 9 allies 8938 | -4/Proximity Caves | Attracted the attention of an 0b10 outpost 8984 | -4/Proximity Caves | Lost 3 allies 9514 | -4/Proximity Caves | Lost 3 allies 9648 | -4/Proximity Caves | Learned Research trap positions 9764 | -4/Proximity Caves | Build established: Scavenger-Mutant 10113 | -4/Proximity Caves | Spotted B-86 Titan 10114 | -4/Proximity Caves | Befriended a Behemoth using the annoying Tinkerer's hack 10321 | -4/Proximity Caves | System corruption reached 30% 10938 | -4/Proximity Caves | Discovered exit to Factory (range 14) 11091 | -4/Proximity Caves | Found Prototype Launcher 11091 | -4/Proximity Caves | Identified Tesla Bomb Launcher 11093 | -4/Proximity Caves | Found Tesla Bomb Launcher 11974 | -4/Proximity Caves | Destroyed B-86 Titan 12029 | -4/Proximity Caves | Lost 3 allies 12064 | -4/Proximity Caves | Lost 3 allies 12208 | -4/Proximity Caves | Entered Factory 12208 | -4/Factory | Accompanied by 5 allies 12208 | -4/Factory | Evolved 2 slots: Power x1, Utility x1 12209 | -4/Factory | Identified exit to Upper Caves 12209 | -4/Factory | Identified Vortex Chain Reactor 12669 | -4/Factory | Lost 3 parts (2u1w) 12713 | -4/Factory | System corruption reached 10% 12719 | -4/Factory | System corruption reached 30% 12780 | -4/Factory | Zion Hacker squad teleported in 12963 | -4/Factory | Identified exit to Research 13132 | -4/Factory | Zion Heavy squad teleported in 13156 | -4/Factory | Found Prototype Protection 13156 | -4/Factory | Identified Zio. Weapon Casing 13180 | -4/Factory | Lost 6 allies 13190 | -4/Factory | Identified exit to Extension 13272 | -4/Factory | Zion Demo squad teleported in 13357 | -4/Factory | Cargo convoy interrupted 13375 | -4/Factory | Entered Extension 13388 | -4/Extension | Disrupted transfer network 13400 | -4/Extension | Zion hero teleported in (NK-0LA) 13434 | -4/Extension | Zion Melee Resupply teleported in 13463 | -4/Extension | Rescued a captive Derelict 13464 | -4/Extension | Rescued a captive Derelict 13534 | -4/Extension | Energy Cycler disabled 13535 | -4/Extension | Rescued a captive Derelict 13536 | -4/Extension | Rescued a captive Derelict 13536 | -4/Extension | Rescued a captive Derelict 13537 | -4/Extension | Rescued a captive Derelict 13539 | -4/Extension | Rescued a captive Derelict 13541 | -4/Extension | Rescued a captive Derelict 13542 | -4/Extension | Rescued a captive Derelict 13542 | -4/Extension | Rescued a captive Derelict 13730 | -4/Extension | Spotted B-86 Titan 13730 | -4/Extension | Spotted B-86 Titan 13737 | -4/Extension | Befriended a Behemoth using the annoying Tinkerer's hack 13738 | -4/Extension | Allies destroyed B-86 Titan 13756 | -4/Extension | Extracted ID and sensor layout for unrecognized location from A7's data core 13825 | -4/Extension | Retrieved Zion intel report: Trap Installations 13826 | -4/Extension | Zion Fire squad teleported in 14093 | -4/Extension | Discovered exit to Research (range 10) 14094 | -4/Extension | Discovered new exit (range 6) 14132 | -4/Extension | Identified exit to Cetus 14137 | -4/Extension | Entered Cetus 14137 | -4/Cetus | Accompanied by 11 allies (NK-0LA) 14152 | -4/Cetus | Spotted Cetus Guard 14152 | -4/Cetus | Spotted Cetus Guard 14156 | -4/Cetus | Spotted Cetus Guard 14156 | -4/Cetus | Spotted Cetus Guard 14175 | -4/Cetus | Allies destroyed Cetus Guard 14180 | -4/Cetus | Allies destroyed Cetus Guard 14184 | -4/Cetus | Allies destroyed Cetus Guard 14184 | -4/Cetus | Allies destroyed Cetus Guard 14345 | -4/Cetus | Discovered new exit (range 16) 14362 | -4/Cetus | Identified exit to Archives 14378 | -4/Cetus | Entered Archives 14378 | -4/Archives | Accompanied by 9 allies (NK-0LA) 14403 | -4/Archives | Identified exit to Hub_04(d) 14416 | -4/Archives | Discovered exit to Research (range 15) 14497 | -4/Archives | Entered Hub_04(d) 14497 | -4/Hub_04(d) | Accompanied by 9 allies (NK-0LA) 14565 | -4/Hub_04(d) | Zion Light squad teleported in 14584 | -4/Hub_04(d) | Discovered exit to Research (range 2) 14739 | -4/Hub_04(d) | Spotted B-86 Titan 14755 | -4/Hub_04(d) | Allies destroyed B-86 Titan 14789 | -4/Hub_04(d) | Zion Light squad teleported in 14792 | -4/Hub_04(d) | Discovered exit to Research (range 15) 14950 | -4/Hub_04(d) | Network Hub disabled 14961 | -4/Hub_04(d) | Spotted Lightning 14961 | -4/Hub_04(d) | Spotted Lightning 14963 | -4/Hub_04(d) | Spotted Lightning 14970 | -4/Hub_04(d) | Destroyed NK-0LA 14993 | -4/Hub_04(d) | Spotted Lightning 14994 | -4/Hub_04(d) | Spotted Lightning 14997 | -4/Hub_04(d) | First assault squad dispatched 15001 | -4/Hub_04(d) | Lost 15 allies 15020 | -4/Hub_04(d) | Incoming assault squad redirected 15052 | -4/Hub_04(d) | Entered Research 15052 | -3/Research | Evolved 2 slots: Utility x2 15053 | -3/Research | Loaded intel: 91 trap records 15056 | -3/Research | Lost 9 parts (1p3n5u) 15061 | -3/Research | Zion Experimental squad teleported in 15170 | -3/Research | System corruption reached 10% 15318 | -3/Research | Build established: Hacker-Assassin 15379 | -3/Research | Central database locked down 15527 | -3/Research | Retrieved Zion intel report: Active Terminals 15528 | -3/Research | Zion Fire squad teleported in 15552 | -3/Research | First assault squad dispatched 15598 | -3/Research | P-80 Master assimilated allied WW-I2A(i) 15636 | -3/Research | Lost 8 parts (3n4u1w) 15817 | -3/Research | Lost 4 parts (3n1u) 15824 | -3/Research | Incoming assault squad redirected 15920 | -3/Research | Zion Infowar Resupply teleported in 16073 | -3/Research | Build established: Scavenger-Assassin 16234 | -3/Research | Zion Zionite Resupply teleported in 16264 | -3/Research | Found Prototype Energy Cannon 16264 | -3/Research | Identified Zio. Alpha Cannon 16270 | -3/Research | Found Prototype Protection 16270 | -3/Research | Identified Zio. Weapon Casing 16291 | -3/Research | Terminal network hard line cut 16370 | -3/Research | System corruption reached 30% 16443 | -3/Research | Lost 11 parts (2p5n4u) 16508 | -3/Research | Released all parts (11) 16509 | -3/Research | Core integrity fell below 50% 16523 | -3/Research | Self-destructed Last Messages --------------- 16504_ Enh. Armored Leg destroyed. 16505_ P-80 Master resets P-80 Master, system corruption cleaned. 16508_ Penetrated by Slug. 16508_ Knocked back. 16508_ Released Imp. Antigrav System. 16508_ Released Zio. Composite Leg II. 16508_ Released Power Sword. 16508_ Released Structural Scanner. 16508_ Released Exp. Targeting Computer. 16508_ Released Exp. Energy Well. 16508_ Released Adv. Signal Interpreter. 16508_ Released Zio. Alpha Cannon. 16508_ Released Huge Storage Unit. 16508_ Released Centrium Wheel. 16508_ Released Adv. Heat Sink. 16513_ Graviton Restrictor disabled. 16518_ 9G/ K7KL%MK#BUVE||7AI:PGORSO,JZ3Z 16521_ Acquired Unknown Processor. 16521_ Identified Enh. Optical Array. Map ----- +----------------------------------------------------+ | ##????????????????????????????????????????????? | | ##????????????????????????????????????????????? | | ##????????????????????????????????????????????? | | ##????????????????????????????????????????????? | | ##????????????????????????????????????????????? | | ##?##########?????????????????????????????????? | | ##?# #?????????????????????????????????? | | #### #?????????????????????????????????? | | ####### #?????????????????????????????????? | | %=/[! + """ #?????????????????????????????????? | | !=]|! # = """ #?????????????????????????????????? | | !!|! + """ #???????????????????????????^^^???? | | !#]T### #???????????????????????????^^^???? | | ###### ##############????????????????????? | | ###### # #????????????????????? | | ##########+##+# = #????????????????????? | | ^ # """ "" #????????????????????? | | ^^ # """ "" #????????????????????? | | ^^ p """ S" #????????????????????? | | ^ # p """ #????????????????????? | | ############### """ #????????????????????? | | # ?????????# """ """ #????????????????????? | | *# ????????????# """ #????????????????????? | | # ????????????# """ #????????????????????? | | # ????????????# #????????????????????? | | + ????????????# [ @ =#????????????????????? | | ???????????????##############????????????????????? | | ?????????????????????????????????????????????????? | | ?????????????????????????????????????????????????? | | ?????????????????????????????????????????????????? | | ?????????????????????????????????????????????????? | | ?????????????????????????????????????????????????? | | ?????????????????????????????????????????????????? | | ?????????????????????????????????????????????????? | | ?????????????????????????????????????????????????? | | ?????????????????????????????????????????????????? | | ?????????????????????????????????????????????????? | | ?????????????????????????????????????????????????? | | ?????????????????????????????????????????????????? | | ?????????????????????????????????????????????????? | | ?????????????????????????????????????????????????? | | ?????????????????????????????????????????????????? | | ?????????????????????????????????????????????????? | | ?????????????????????????????????????????????????? | | ?????????????????????????????????????????????????? | | ?????????????????????????????????????????????????? | | ?????????????????????????????????????????????????? | | ?????????????????????????????????????????????????? | | ?????????????????????????????????????????????????? | | ?????????????????????????????????????????????????? | +----------------------------------------------------+ Best States ------------- Heat Dissipation 65 Energy Generation 55 Energy Capacity 1765 Matter Stores 300 Matter Capacity 300 Sight Range 22 Robot Scan Range 16 Terrain Scan Range 24 Terrain Scan Density 210 ECM Strength 2 Additional Mass Support 9 Armor Coverage 1200 Resistance: KI 25 Resistance: EM 25 Core Shielding 30 Utility Shielding 66 Weapon Shielding 100 Evasion (%) 70 Targeting Accuracy 26 Melee Accuracy 14 Launcher Accuracy 20 Target Analysis 12 Recoil Reduction 1 Offensive Hacking 40 Defensive Hacking 12 Item Schematics ----------------- Combat Drone Bay | -6/Data Miner | Free Lgt. Regenerative Plating | -6/Data Miner | Free Cld. Nuclear Pulse Thruster | -6/Data Miner | Free Exp. Heat Sink | -6/Data Miner | Free Smartbomb Launcher | -6/Data Miner | Free Imp. Linear Gravjet | -6/Data Miner | Free Lrn. Sensor Array | -6/Data Miner | Free Hvy. Gauss Cannon | -6/Data Miner | Free Imp. Weapon Cycler | -6/Data Miner | Free Railgun | -6/Data Miner | Free Robot Schematics ------------------ M-13 Machinist | -10/Materials | Hacked G-50 Soldier | -6/Data Miner | Free B-60 Warrior | -6/Data Miner | Free S-27 Virus | -6/Data Miner | Free P-70 Sage | -6/Data Miner | Free M-36 Artificer | -6/Data Miner | Free Fabricated ------------ Nothing Repaired ---------- Nothing Studied --------- Surge Thruster | -7/Factory | Hacked Arm. Huge Wheel | -7/Factory | Hacked Myomer Leg | -3/Research | Hacked Alien Tech Used ----------------- Dimensional Node Initializer Achievements -------------- Better Safe Than Exploded Decoder Ring Explosive Keycard Reappropriation Challenges ------------ None Game ------ Seed ThermalXenonDirector Manual? 0 Play Time 03:25:31 Cumulative 122.5 hours Start 2026.02.28 @ 00:16:46 End 2026.02.28 @ 11:54:57 Sessions 12 Manual Loads 0 Difficulty Rogue Special Mode None Game No. 173 Rogue 173 Adventurer 0 Explorer 0 Win Type - Total 0 Types 0/0/0/0/0/0/0/0/0/0 Lore% 34 Gallery% 46 Achievement% 37 Wizard Run 0 Options --------- Layout 1 ASCII 0 Keyboard 0 Movement Mouse Keybinds 0 Fullscreen 2 Font 24/Smallcaps Map View 50x35 Zoom Use 14% Tactical HUD 1 Map Filters NONE Filters NONE Steam 1 RUN: ab5c8489-19e0-4708-944f-59fa9bb54d98